{"text_format":"3","workbook":"xlsx","n_sheets":3,"sheets":["Fahrtenbuch","Protokolldaten","Berechnungen"],"not_rendered":{"charts":1,"defined_names":17},"read":"whole","date_system":"1900"}

{"sheet":"Fahrtenbuch","index":0,"n_rows":29,"n_cols":5,"rows_kept":29,"merged":[[0,1,1,4]]}
[null,"FAHRTENBUCH"]
{"$rows_empty":9}
[null,null,"ERSTATTUNGSFÄHIGE",null,"GESAMTE"]
[null,null,"KILOMETER",null,"ERSTATTUNG"]
[]
[]
[]
[]
[null,null,"2012-05-01",null,"2012-05-10"]
[]
[null,null,"ZEITRAUM",null,"ZEITRAUM"]
[null,null,"BEGINN",null,"ENDE"]
[]
[]
[]
[]
[]
[null,null,54,null,{"v":9800,"d":"9,800"}]
[]
[null,null,"ERSTATTUNG",null,"VORHERIGER KILOMETER-"]
[null,null,"Cent/km",null,"STAND"]

{"sheet":"Protokolldaten","index":1,"n_rows":19,"n_cols":15,"rows_kept":19,"merged":[[0,1,1,4]]}
[null,"FAHRTENBUCH"]
[{"$nulls":14}," "]
[]
[]
[null,"DATUM","AKTIVITÄT","KILOMETERZ. 1","STANDORT","KILOMETERZ. 2","ZIEL","ERSTATTEN","LITER","KOSTEN","KILOMETER","VERBRAUCH PRO 100 KM","CENT/KM","NOTIZEN"]
[null,"2012-05-01","Fahrt",{"v":10123,"d":"10,123"},"Chevron - Hauptstraße",{"v":10130,"d":"10,130"},null,null,15.56,{"v":64.11,"d":"64.11 €"},{"$f":"Kilomenter","v":7},{"$f":"IF(OR(LEN(Daten[[#This Row],[KILOMETERZ. 2]]),Daten[[#This Row],[KILOMETERZ. 1]]=\"\"),\"\",IFERROR(Daten[[#This Row],[KILOMETER]]/Daten[[#This Row],[LITER]],\"\"))","v":""},{"$f":"IF(Daten[[#This Row],[VERBRAUCH PRO 100 KM]]=\"\",\"\",100*Daten[[#This Row],[KOSTEN]]/Daten[[#This Row],[KILOMETER]])","v":""}]
[null,"2012-05-01","Fahrt",{"v":10130,"d":"10,130"},"Büro",{"v":10200,"d":"10,200"},"Mozartstraße","Ja",null,"",{"$f":"Kilomenter","v":70},{"$f":"IF(OR(LEN(Daten[[#This Row],[KILOMETERZ. 2]]),Daten[[#This Row],[KILOMETERZ. 1]]=\"\"),\"\",IFERROR(Daten[[#This Row],[KILOMETER]]/Daten[[#This Row],[LITER]],\"\"))","v":""},{"$f":"IF(Daten[[#This Row],[VERBRAUCH PRO 100 KM]]=\"\",\"\",100*Daten[[#This Row],[KOSTEN]]/Daten[[#This Row],[KILOMETER]])","v":""}]
[null,"2012-05-01","Fahrt",{"v":10200,"d":"10,200"},"Stuttgart",{"v":10285,"d":"10,285"},"Büro","Ja",null,"",{"$f":"Kilomenter","v":85},{"$f":"IF(OR(LEN(Daten[[#This Row],[KILOMETERZ. 2]]),Daten[[#This Row],[KILOMETERZ. 1]]=\"\"),\"\",IFERROR(Daten[[#This Row],[KILOMETER]]/Daten[[#This Row],[LITER]],\"\"))","v":""},{"$f":"IF(Daten[[#This Row],[VERBRAUCH PRO 100 KM]]=\"\",\"\",100*Daten[[#This Row],[KOSTEN]]/Daten[[#This Row],[KILOMETER]])","v":""}]
[null,"2012-05-02","Fahrt",{"v":10285,"d":"10,285"},"Büro",{"v":10450,"d":"10,450"},"Coho Vineyard","Ja",null,"",{"$f":"Kilomenter","v":165},{"$f":"IF(OR(LEN(Daten[[#This Row],[KILOMETERZ. 2]]),Daten[[#This Row],[KILOMETERZ. 1]]=\"\"),\"\",IFERROR(Daten[[#This Row],[KILOMETER]]/Daten[[#This Row],[LITER]],\"\"))","v":""},{"$f":"IF(Daten[[#This Row],[VERBRAUCH PRO 100 KM]]=\"\",\"\",100*Daten[[#This Row],[KOSTEN]]/Daten[[#This Row],[KILOMETER]])","v":""}]
[null,"2012-05-02","Kraftstoff",{"v":10450,"d":"10,450"},"Shell",{"$nulls":3},{"v":11.2,"d":"11.20"},{"v":55.42,"d":"55.42 €"},{"$f":"Kilomenter","v":650},{"$f":"IF(OR(LEN(Daten[[#This Row],[KILOMETERZ. 2]]),Daten[[#This Row],[KILOMETERZ. 1]]=\"\"),\"\",IFERROR(Daten[[#This Row],[KILOMETER]]/Daten[[#This Row],[LITER]],\"\"))","v":{"v":58.03571428571429,"d":"58.0"}},{"$f":"IF(Daten[[#This Row],[VERBRAUCH PRO 100 KM]]=\"\",\"\",100*Daten[[#This Row],[KOSTEN]]/Daten[[#This Row],[KILOMETER]])","v":{"v":8.526153846153846,"d":"8.5"}}]
[null,"2012-05-02","Fahrt",{"v":10500,"d":"10,500"},"Coho Vineyard",{"v":10518,"d":"10,518"},"Büro","Ja",null,"",{"$f":"Kilomenter","v":18},{"$f":"IF(OR(LEN(Daten[[#This Row],[KILOMETERZ. 2]]),Daten[[#This Row],[KILOMETERZ. 1]]=\"\"),\"\",IFERROR(Daten[[#This Row],[KILOMETER]]/Daten[[#This Row],[LITER]],\"\"))","v":""},{"$f":"IF(Daten[[#This Row],[VERBRAUCH PRO 100 KM]]=\"\",\"\",100*Daten[[#This Row],[KOSTEN]]/Daten[[#This Row],[KILOMETER]])","v":""}]
[null,"2012-05-03","Fahrt",{"v":10518,"d":"10,518"},"Büro",{"v":10745,"d":"10,745"},"Büro","Ja",null,"",{"$f":"Kilomenter","v":227},{"$f":"IF(OR(LEN(Daten[[#This Row],[KILOMETERZ. 2]]),Daten[[#This Row],[KILOMETERZ. 1]]=\"\"),\"\",IFERROR(Daten[[#This Row],[KILOMETER]]/Daten[[#This Row],[LITER]],\"\"))","v":""},{"$f":"IF(Daten[[#This Row],[VERBRAUCH PRO 100 KM]]=\"\",\"\",100*Daten[[#This Row],[KOSTEN]]/Daten[[#This Row],[KILOMETER]])","v":""}]
[null,"2012-05-04","Kraftstoff",{"v":10745,"d":"10,745"},"Chevron - Hauptstraße",{"$nulls":3},{"v":16.6,"d":"16.60"},{"v":69.24,"d":"69.24 €"},{"$f":"Kilomenter","v":295},{"$f":"IF(OR(LEN(Daten[[#This Row],[KILOMETERZ. 2]]),Daten[[#This Row],[KILOMETERZ. 1]]=\"\"),\"\",IFERROR(Daten[[#This Row],[KILOMETER]]/Daten[[#This Row],[LITER]],\"\"))","v":{"v":17.771084337349397,"d":"17.8"}},{"$f":"IF(Daten[[#This Row],[VERBRAUCH PRO 100 KM]]=\"\",\"\",100*Daten[[#This Row],[KOSTEN]]/Daten[[#This Row],[KILOMETER]])","v":{"v":23.471186440677965,"d":"23.5"}}]
[null,"2012-05-04","Fahrt",{"v":10745,"d":"10,745"},"Büro",{"v":10800,"d":"10,800"},"Pirmasens","Ja",null,"",{"$f":"Kilomenter","v":55},{"$f":"IF(OR(LEN(Daten[[#This Row],[KILOMETERZ. 2]]),Daten[[#This Row],[KILOMETERZ. 1]]=\"\"),\"\",IFERROR(Daten[[#This Row],[KILOMETER]]/Daten[[#This Row],[LITER]],\"\"))","v":""},{"$f":"IF(Daten[[#This Row],[VERBRAUCH PRO 100 KM]]=\"\",\"\",100*Daten[[#This Row],[KOSTEN]]/Daten[[#This Row],[KILOMETER]])","v":""}]
[null,"2012-05-04","Fahrt",{"v":10800,"d":"10,800"},"Pirmasens",{"v":10875,"d":"10,875"},"Büro","Ja",null,"",{"$f":"Kilomenter","v":75},{"$f":"IF(OR(LEN(Daten[[#This Row],[KILOMETERZ. 2]]),Daten[[#This Row],[KILOMETERZ. 1]]=\"\"),\"\",IFERROR(Daten[[#This Row],[KILOMETER]]/Daten[[#This Row],[LITER]],\"\"))","v":""},{"$f":"IF(Daten[[#This Row],[VERBRAUCH PRO 100 KM]]=\"\",\"\",100*Daten[[#This Row],[KOSTEN]]/Daten[[#This Row],[KILOMETER]])","v":""}]
[null,"2012-05-07","Fahrt",{"v":10875,"d":"10,875"},"Büro",{"v":10921,"d":"10,921"},"Mozartstraße","Ja",null,"",{"$f":"Kilomenter","v":46},{"$f":"IF(OR(LEN(Daten[[#This Row],[KILOMETERZ. 2]]),Daten[[#This Row],[KILOMETERZ. 1]]=\"\"),\"\",IFERROR(Daten[[#This Row],[KILOMETER]]/Daten[[#This Row],[LITER]],\"\"))","v":""},{"$f":"IF(Daten[[#This Row],[VERBRAUCH PRO 100 KM]]=\"\",\"\",100*Daten[[#This Row],[KOSTEN]]/Daten[[#This Row],[KILOMETER]])","v":""}]
[null,"2012-05-07","Fahrt",{"v":10921,"d":"10,921"},"Stuttgart",{"v":10969,"d":"10,969"},"Büro","Ja",null,"",{"$f":"Kilomenter","v":48},{"$f":"IF(OR(LEN(Daten[[#This Row],[KILOMETERZ. 2]]),Daten[[#This Row],[KILOMETERZ. 1]]=\"\"),\"\",IFERROR(Daten[[#This Row],[KILOMETER]]/Daten[[#This Row],[LITER]],\"\"))","v":""},{"$f":"IF(Daten[[#This Row],[VERBRAUCH PRO 100 KM]]=\"\",\"\",100*Daten[[#This Row],[KOSTEN]]/Daten[[#This Row],[KILOMETER]])","v":""}]
[null,"2012-05-09","Fahrt",{"v":10969,"d":"10,969"},"Büro",{"v":11000,"d":"11,000"},"Regensburg","Ja",null,"",{"$f":"Kilomenter","v":31},{"$f":"IF(OR(LEN(Daten[[#This Row],[KILOMETERZ. 2]]),Daten[[#This Row],[KILOMETERZ. 1]]=\"\"),\"\",IFERROR(Daten[[#This Row],[KILOMETER]]/Daten[[#This Row],[LITER]],\"\"))","v":""},{"$f":"IF(Daten[[#This Row],[VERBRAUCH PRO 100 KM]]=\"\",\"\",100*Daten[[#This Row],[KOSTEN]]/Daten[[#This Row],[KILOMETER]])","v":""}]
[null,"2012-05-09","Fahrt",{"v":11000,"d":"11,000"},"Regensburg",{"v":11100,"d":"11,100"},"Nach Hause","Nein",null,"",{"$f":"Kilomenter","v":100},{"$f":"IF(OR(LEN(Daten[[#This Row],[KILOMETERZ. 2]]),Daten[[#This Row],[KILOMETERZ. 1]]=\"\"),\"\",IFERROR(Daten[[#This Row],[KILOMETER]]/Daten[[#This Row],[LITER]],\"\"))","v":""},{"$f":"IF(Daten[[#This Row],[VERBRAUCH PRO 100 KM]]=\"\",\"\",100*Daten[[#This Row],[KOSTEN]]/Daten[[#This Row],[KILOMETER]])","v":""}]

{"sheet":"Berechnungen","index":2,"n_rows":69,"n_cols":13,"rows_kept":69,"hidden":true}
["*** Dieses Arbeitsblatt sollte ausgeblendet bleiben. ***"]
[]
[]
[]
[]
[{"$nulls":8},{"$f":"OFFSET(I9,,zweiteAchse=\"Kraftstoffkosten\")","v":"Cent/km"}]
[{"$nulls":12},2]
[{"$nulls":7},"Fahrt","Kraftstoff","Kraftstoff",null,"Zweite Achse:  ",{"$f":"REPT(\"VERBRAUCH PRO 100 KM\",M7=1)&REPT(\"Kraftstoffkosten\",M7=2)","v":"Kraftstoffkosten"}]
[{"$nulls":7},"Gefahrene Kilometer","VERBRAUCH PRO 100 KM","Cent/km"]
[null,null,"Erstattungsfähige Kilometer:  ",{"$f":"SUMIFS(Daten[KILOMETER],Daten[ERSTATTEN],\"Ja\",Daten[DATUM],\">=\"&PeriodeStart,Daten[DATUM],\"<=\"&PeriodeEnde)","v":820},null,1,{"$f":"PeriodeStart","v":"2012-05-01"},{"$f":"SUMIFS(Daten[KILOMETER],Daten[DATUM],G10,Daten[AKTIVITÄT],$H$8)","v":162},{"$f":"IFERROR(AVERAGEIFS(Daten[VERBRAUCH PRO 100 KM],Daten[DATUM],G10,Daten[AKTIVITÄT],$I$8),NA())","v":{"$error":"#N/A"}},{"$f":"IFERROR(AVERAGEIFS(Daten[CENT/KM],Daten[DATUM],G10,Daten[AKTIVITÄT],$J$8),NA())","v":{"$error":"#N/A"}}]
[null,null,"Gesamte Erstattung: ",{"$f":"D10*ErstattungProKilometer/100","v":{"v":442.8,"d":"442.80 €"}},null,2,{"$f":"G10+1","v":"2012-05-02"},{"$f":"SUMIFS(Daten[KILOMETER],Daten[DATUM],G11,Daten[AKTIVITÄT],$H$8)","v":183},{"$f":"IFERROR(AVERAGEIFS(Daten[VERBRAUCH PRO 100 KM],Daten[DATUM],G11,Daten[AKTIVITÄT],$I$8),NA())","v":{"v":58.03571428571429,"d":"58.0"}},{"$f":"IFERROR(AVERAGEIFS(Daten[CENT/KM],Daten[DATUM],G11,Daten[AKTIVITÄT],$J$8),NA())","v":{"v":8.526153846153846,"d":"8.5"}}]
[{"$nulls":5},3,"2012-05-03",{"$f":"SUMIFS(Daten[KILOMETER],Daten[DATUM],G12,Daten[AKTIVITÄT],$H$8)","v":227},{"$f":"IFERROR(AVERAGEIFS(Daten[VERBRAUCH PRO 100 KM],Daten[DATUM],G12,Daten[AKTIVITÄT],$I$8),NA())","v":{"$error":"#N/A"}},{"$f":"IFERROR(AVERAGEIFS(Daten[CENT/KM],Daten[DATUM],G12,Daten[AKTIVITÄT],$J$8),NA())","v":{"$error":"#N/A"}}]
[{"$nulls":5},4,"2012-05-04",{"$f":"SUMIFS(Daten[KILOMETER],Daten[DATUM],G13,Daten[AKTIVITÄT],$H$8)","v":130},{"$f":"IFERROR(AVERAGEIFS(Daten[VERBRAUCH PRO 100 KM],Daten[DATUM],G13,Daten[AKTIVITÄT],$I$8),NA())","v":{"v":17.771084337349397,"d":"17.8"}},{"$f":"IFERROR(AVERAGEIFS(Daten[CENT/KM],Daten[DATUM],G13,Daten[AKTIVITÄT],$J$8),NA())","v":{"v":23.471186440677965,"d":"23.5"}}]
[{"$nulls":5},5,"2012-05-05",{"$f":"SUMIFS(Daten[KILOMETER],Daten[DATUM],G14,Daten[AKTIVITÄT],$H$8)","v":0},{"$f":"IFERROR(AVERAGEIFS(Daten[VERBRAUCH PRO 100 KM],Daten[DATUM],G14,Daten[AKTIVITÄT],$I$8),NA())","v":{"$error":"#N/A"}},{"$f":"IFERROR(AVERAGEIFS(Daten[CENT/KM],Daten[DATUM],G14,Daten[AKTIVITÄT],$J$8),NA())","v":{"$error":"#N/A"}}]
[{"$nulls":5},6,"2012-05-06",{"$f":"SUMIFS(Daten[KILOMETER],Daten[DATUM],G15,Daten[AKTIVITÄT],$H$8)","v":0},{"$f":"IFERROR(AVERAGEIFS(Daten[VERBRAUCH PRO 100 KM],Daten[DATUM],G15,Daten[AKTIVITÄT],$I$8),NA())","v":{"$error":"#N/A"}},{"$f":"IFERROR(AVERAGEIFS(Daten[CENT/KM],Daten[DATUM],G15,Daten[AKTIVITÄT],$J$8),NA())","v":{"$error":"#N/A"}}]
[{"$nulls":5},7,"2012-05-07",{"$f":"SUMIFS(Daten[KILOMETER],Daten[DATUM],G16,Daten[AKTIVITÄT],$H$8)","v":94},{"$f":"IFERROR(AVERAGEIFS(Daten[VERBRAUCH PRO 100 KM],Daten[DATUM],G16,Daten[AKTIVITÄT],$I$8),NA())","v":{"$error":"#N/A"}},{"$f":"IFERROR(AVERAGEIFS(Daten[CENT/KM],Daten[DATUM],G16,Daten[AKTIVITÄT],$J$8),NA())","v":{"$error":"#N/A"}}]
[{"$nulls":5},8,"2012-05-08",{"$f":"SUMIFS(Daten[KILOMETER],Daten[DATUM],G17,Daten[AKTIVITÄT],$H$8)","v":0},{"$f":"IFERROR(AVERAGEIFS(Daten[VERBRAUCH PRO 100 KM],Daten[DATUM],G17,Daten[AKTIVITÄT],$I$8),NA())","v":{"$error":"#N/A"}},{"$f":"IFERROR(AVERAGEIFS(Daten[CENT/KM],Daten[DATUM],G17,Daten[AKTIVITÄT],$J$8),NA())","v":{"$error":"#N/A"}}]
[{"$nulls":5},9,"2012-05-09",{"$f":"SUMIFS(Daten[KILOMETER],Daten[DATUM],G18,Daten[AKTIVITÄT],$H$8)","v":131},{"$f":"IFERROR(AVERAGEIFS(Daten[VERBRAUCH PRO 100 KM],Daten[DATUM],G18,Daten[AKTIVITÄT],$I$8),NA())","v":{"$error":"#N/A"}},{"$f":"IFERROR(AVERAGEIFS(Daten[CENT/KM],Daten[DATUM],G18,Daten[AKTIVITÄT],$J$8),NA())","v":{"$error":"#N/A"}}]
[{"$nulls":5},10,"2012-05-10",{"$f":"SUMIFS(Daten[KILOMETER],Daten[DATUM],G19,Daten[AKTIVITÄT],$H$8)","v":0},{"$f":"IFERROR(AVERAGEIFS(Daten[VERBRAUCH PRO 100 KM],Daten[DATUM],G19,Daten[AKTIVITÄT],$I$8),NA())","v":{"$error":"#N/A"}},{"$f":"IFERROR(AVERAGEIFS(Daten[CENT/KM],Daten[DATUM],G19,Daten[AKTIVITÄT],$J$8),NA())","v":{"$error":"#N/A"}}]
[{"$nulls":5},11,"2012-05-11",{"$f":"SUMIFS(Daten[KILOMETER],Daten[DATUM],G20,Daten[AKTIVITÄT],$H$8)","v":0},{"$f":"IFERROR(AVERAGEIFS(Daten[VERBRAUCH PRO 100 KM],Daten[DATUM],G20,Daten[AKTIVITÄT],$I$8),NA())","v":{"$error":"#N/A"}},{"$f":"IFERROR(AVERAGEIFS(Daten[CENT/KM],Daten[DATUM],G20,Daten[AKTIVITÄT],$J$8),NA())","v":{"$error":"#N/A"}}]
[{"$nulls":5},12,"2012-05-12",{"$f":"SUMIFS(Daten[KILOMETER],Daten[DATUM],G21,Daten[AKTIVITÄT],$H$8)","v":0},{"$f":"IFERROR(AVERAGEIFS(Daten[VERBRAUCH PRO 100 KM],Daten[DATUM],G21,Daten[AKTIVITÄT],$I$8),NA())","v":{"$error":"#N/A"}},{"$f":"IFERROR(AVERAGEIFS(Daten[CENT/KM],Daten[DATUM],G21,Daten[AKTIVITÄT],$J$8),NA())","v":{"$error":"#N/A"}}]
[{"$nulls":5},13,"2012-05-13",{"$f":"SUMIFS(Daten[KILOMETER],Daten[DATUM],G22,Daten[AKTIVITÄT],$H$8)","v":0},{"$f":"IFERROR(AVERAGEIFS(Daten[VERBRAUCH PRO 100 KM],Daten[DATUM],G22,Daten[AKTIVITÄT],$I$8),NA())","v":{"$error":"#N/A"}},{"$f":"IFERROR(AVERAGEIFS(Daten[CENT/KM],Daten[DATUM],G22,Daten[AKTIVITÄT],$J$8),NA())","v":{"$error":"#N/A"}}]
[{"$nulls":5},14,"2012-05-14",{"$f":"SUMIFS(Daten[KILOMETER],Daten[DATUM],G23,Daten[AKTIVITÄT],$H$8)","v":0},{"$f":"IFERROR(AVERAGEIFS(Daten[VERBRAUCH PRO 100 KM],Daten[DATUM],G23,Daten[AKTIVITÄT],$I$8),NA())","v":{"$error":"#N/A"}},{"$f":"IFERROR(AVERAGEIFS(Daten[CENT/KM],Daten[DATUM],G23,Daten[AKTIVITÄT],$J$8),NA())","v":{"$error":"#N/A"}}]
[{"$nulls":5},15,"2012-05-15",{"$f":"SUMIFS(Daten[KILOMETER],Daten[DATUM],G24,Daten[AKTIVITÄT],$H$8)","v":0},{"$f":"IFERROR(AVERAGEIFS(Daten[VERBRAUCH PRO 100 KM],Daten[DATUM],G24,Daten[AKTIVITÄT],$I$8),NA())","v":{"$error":"#N/A"}},{"$f":"IFERROR(AVERAGEIFS(Daten[CENT/KM],Daten[DATUM],G24,Daten[AKTIVITÄT],$J$8),NA())","v":{"$error":"#N/A"}}]
[{"$nulls":5},16,"2012-05-16",{"$f":"SUMIFS(Daten[KILOMETER],Daten[DATUM],G25,Daten[AKTIVITÄT],$H$8)","v":0},{"$f":"IFERROR(AVERAGEIFS(Daten[VERBRAUCH PRO 100 KM],Daten[DATUM],G25,Daten[AKTIVITÄT],$I$8),NA())","v":{"$error":"#N/A"}},{"$f":"IFERROR(AVERAGEIFS(Daten[CENT/KM],Daten[DATUM],G25,Daten[AKTIVITÄT],$J$8),NA())","v":{"$error":"#N/A"}}]
[{"$nulls":5},17,"2012-05-17",{"$f":"SUMIFS(Daten[KILOMETER],Daten[DATUM],G26,Daten[AKTIVITÄT],$H$8)","v":0},{"$f":"IFERROR(AVERAGEIFS(Daten[VERBRAUCH PRO 100 KM],Daten[DATUM],G26,Daten[AKTIVITÄT],$I$8),NA())","v":{"$error":"#N/A"}},{"$f":"IFERROR(AVERAGEIFS(Daten[CENT/KM],Daten[DATUM],G26,Daten[AKTIVITÄT],$J$8),NA())","v":{"$error":"#N/A"}}]
[{"$nulls":5},18,"2012-05-18",{"$f":"SUMIFS(Daten[KILOMETER],Daten[DATUM],G27,Daten[AKTIVITÄT],$H$8)","v":0},{"$f":"IFERROR(AVERAGEIFS(Daten[VERBRAUCH PRO 100 KM],Daten[DATUM],G27,Daten[AKTIVITÄT],$I$8),NA())","v":{"$error":"#N/A"}},{"$f":"IFERROR(AVERAGEIFS(Daten[CENT/KM],Daten[DATUM],G27,Daten[AKTIVITÄT],$J$8),NA())","v":{"$error":"#N/A"}}]
[{"$nulls":5},19,"2012-05-19",{"$f":"SUMIFS(Daten[KILOMETER],Daten[DATUM],G28,Daten[AKTIVITÄT],$H$8)","v":0},{"$f":"IFERROR(AVERAGEIFS(Daten[VERBRAUCH PRO 100 KM],Daten[DATUM],G28,Daten[AKTIVITÄT],$I$8),NA())","v":{"$error":"#N/A"}},{"$f":"IFERROR(AVERAGEIFS(Daten[CENT/KM],Daten[DATUM],G28,Daten[AKTIVITÄT],$J$8),NA())","v":{"$error":"#N/A"}}]
[{"$nulls":5},20,"2012-05-20",{"$f":"SUMIFS(Daten[KILOMETER],Daten[DATUM],G29,Daten[AKTIVITÄT],$H$8)","v":0},{"$f":"IFERROR(AVERAGEIFS(Daten[VERBRAUCH PRO 100 KM],Daten[DATUM],G29,Daten[AKTIVITÄT],$I$8),NA())","v":{"$error":"#N/A"}},{"$f":"IFERROR(AVERAGEIFS(Daten[CENT/KM],Daten[DATUM],G29,Daten[AKTIVITÄT],$J$8),NA())","v":{"$error":"#N/A"}}]
[{"$nulls":5},21,"2012-05-21",{"$f":"SUMIFS(Daten[KILOMETER],Daten[DATUM],G30,Daten[AKTIVITÄT],$H$8)","v":0},{"$f":"IFERROR(AVERAGEIFS(Daten[VERBRAUCH PRO 100 KM],Daten[DATUM],G30,Daten[AKTIVITÄT],$I$8),NA())","v":{"$error":"#N/A"}},{"$f":"IFERROR(AVERAGEIFS(Daten[CENT/KM],Daten[DATUM],G30,Daten[AKTIVITÄT],$J$8),NA())","v":{"$error":"#N/A"}}]
[{"$nulls":5},22,"2012-05-22",{"$f":"SUMIFS(Daten[KILOMETER],Daten[DATUM],G31,Daten[AKTIVITÄT],$H$8)","v":0},{"$f":"IFERROR(AVERAGEIFS(Daten[VERBRAUCH PRO 100 KM],Daten[DATUM],G31,Daten[AKTIVITÄT],$I$8),NA())","v":{"$error":"#N/A"}},{"$f":"IFERROR(AVERAGEIFS(Daten[CENT/KM],Daten[DATUM],G31,Daten[AKTIVITÄT],$J$8),NA())","v":{"$error":"#N/A"}}]
[{"$nulls":5},23,"2012-05-23",{"$f":"SUMIFS(Daten[KILOMETER],Daten[DATUM],G32,Daten[AKTIVITÄT],$H$8)","v":0},{"$f":"IFERROR(AVERAGEIFS(Daten[VERBRAUCH PRO 100 KM],Daten[DATUM],G32,Daten[AKTIVITÄT],$I$8),NA())","v":{"$error":"#N/A"}},{"$f":"IFERROR(AVERAGEIFS(Daten[CENT/KM],Daten[DATUM],G32,Daten[AKTIVITÄT],$J$8),NA())","v":{"$error":"#N/A"}}]
[{"$nulls":5},24,"2012-05-24",{"$f":"SUMIFS(Daten[KILOMETER],Daten[DATUM],G33,Daten[AKTIVITÄT],$H$8)","v":0},{"$f":"IFERROR(AVERAGEIFS(Daten[VERBRAUCH PRO 100 KM],Daten[DATUM],G33,Daten[AKTIVITÄT],$I$8),NA())","v":{"$error":"#N/A"}},{"$f":"IFERROR(AVERAGEIFS(Daten[CENT/KM],Daten[DATUM],G33,Daten[AKTIVITÄT],$J$8),NA())","v":{"$error":"#N/A"}}]
[{"$nulls":5},25,"2012-05-25",{"$f":"SUMIFS(Daten[KILOMETER],Daten[DATUM],G34,Daten[AKTIVITÄT],$H$8)","v":0},{"$f":"IFERROR(AVERAGEIFS(Daten[VERBRAUCH PRO 100 KM],Daten[DATUM],G34,Daten[AKTIVITÄT],$I$8),NA())","v":{"$error":"#N/A"}},{"$f":"IFERROR(AVERAGEIFS(Daten[CENT/KM],Daten[DATUM],G34,Daten[AKTIVITÄT],$J$8),NA())","v":{"$error":"#N/A"}}]
[{"$nulls":5},26,"2012-05-26",{"$f":"SUMIFS(Daten[KILOMETER],Daten[DATUM],G35,Daten[AKTIVITÄT],$H$8)","v":0},{"$f":"IFERROR(AVERAGEIFS(Daten[VERBRAUCH PRO 100 KM],Daten[DATUM],G35,Daten[AKTIVITÄT],$I$8),NA())","v":{"$error":"#N/A"}},{"$f":"IFERROR(AVERAGEIFS(Daten[CENT/KM],Daten[DATUM],G35,Daten[AKTIVITÄT],$J$8),NA())","v":{"$error":"#N/A"}}]
[{"$nulls":5},27,"2012-05-27",{"$f":"SUMIFS(Daten[KILOMETER],Daten[DATUM],G36,Daten[AKTIVITÄT],$H$8)","v":0},{"$f":"IFERROR(AVERAGEIFS(Daten[VERBRAUCH PRO 100 KM],Daten[DATUM],G36,Daten[AKTIVITÄT],$I$8),NA())","v":{"$error":"#N/A"}},{"$f":"IFERROR(AVERAGEIFS(Daten[CENT/KM],Daten[DATUM],G36,Daten[AKTIVITÄT],$J$8),NA())","v":{"$error":"#N/A"}}]
[{"$nulls":5},28,"2012-05-28",{"$f":"SUMIFS(Daten[KILOMETER],Daten[DATUM],G37,Daten[AKTIVITÄT],$H$8)","v":0},{"$f":"IFERROR(AVERAGEIFS(Daten[VERBRAUCH PRO 100 KM],Daten[DATUM],G37,Daten[AKTIVITÄT],$I$8),NA())","v":{"$error":"#N/A"}},{"$f":"IFERROR(AVERAGEIFS(Daten[CENT/KM],Daten[DATUM],G37,Daten[AKTIVITÄT],$J$8),NA())","v":{"$error":"#N/A"}}]
[{"$nulls":5},29,"2012-05-29",{"$f":"SUMIFS(Daten[KILOMETER],Daten[DATUM],G38,Daten[AKTIVITÄT],$H$8)","v":0},{"$f":"IFERROR(AVERAGEIFS(Daten[VERBRAUCH PRO 100 KM],Daten[DATUM],G38,Daten[AKTIVITÄT],$I$8),NA())","v":{"$error":"#N/A"}},{"$f":"IFERROR(AVERAGEIFS(Daten[CENT/KM],Daten[DATUM],G38,Daten[AKTIVITÄT],$J$8),NA())","v":{"$error":"#N/A"}}]
[{"$nulls":5},30,"2012-05-30",{"$f":"SUMIFS(Daten[KILOMETER],Daten[DATUM],G39,Daten[AKTIVITÄT],$H$8)","v":0},{"$f":"IFERROR(AVERAGEIFS(Daten[VERBRAUCH PRO 100 KM],Daten[DATUM],G39,Daten[AKTIVITÄT],$I$8),NA())","v":{"$error":"#N/A"}},{"$f":"IFERROR(AVERAGEIFS(Daten[CENT/KM],Daten[DATUM],G39,Daten[AKTIVITÄT],$J$8),NA())","v":{"$error":"#N/A"}}]
[{"$nulls":5},31,"2012-05-31",{"$f":"SUMIFS(Daten[KILOMETER],Daten[DATUM],G40,Daten[AKTIVITÄT],$H$8)","v":0},{"$f":"IFERROR(AVERAGEIFS(Daten[VERBRAUCH PRO 100 KM],Daten[DATUM],G40,Daten[AKTIVITÄT],$I$8),NA())","v":{"$error":"#N/A"}},{"$f":"IFERROR(AVERAGEIFS(Daten[CENT/KM],Daten[DATUM],G40,Daten[AKTIVITÄT],$J$8),NA())","v":{"$error":"#N/A"}}]
[{"$nulls":5},32,"2012-06-01",{"$f":"SUMIFS(Daten[KILOMETER],Daten[DATUM],G41,Daten[AKTIVITÄT],$H$8)","v":0},{"$f":"IFERROR(AVERAGEIFS(Daten[VERBRAUCH PRO 100 KM],Daten[DATUM],G41,Daten[AKTIVITÄT],$I$8),NA())","v":{"$error":"#N/A"}},{"$f":"IFERROR(AVERAGEIFS(Daten[CENT/KM],Daten[DATUM],G41,Daten[AKTIVITÄT],$J$8),NA())","v":{"$error":"#N/A"}}]
[{"$nulls":5},33,"2012-06-02",{"$f":"SUMIFS(Daten[KILOMETER],Daten[DATUM],G42,Daten[AKTIVITÄT],$H$8)","v":0},{"$f":"IFERROR(AVERAGEIFS(Daten[VERBRAUCH PRO 100 KM],Daten[DATUM],G42,Daten[AKTIVITÄT],$I$8),NA())","v":{"$error":"#N/A"}},{"$f":"IFERROR(AVERAGEIFS(Daten[CENT/KM],Daten[DATUM],G42,Daten[AKTIVITÄT],$J$8),NA())","v":{"$error":"#N/A"}}]
[{"$nulls":5},34,{"$f":"G42+1","v":"2012-06-03"},{"$f":"SUMIFS(Daten[KILOMETER],Daten[DATUM],G43,Daten[AKTIVITÄT],$H$8)","v":0},{"$f":"IFERROR(AVERAGEIFS(Daten[VERBRAUCH PRO 100 KM],Daten[DATUM],G43,Daten[AKTIVITÄT],$I$8),NA())","v":{"$error":"#N/A"}},{"$f":"IFERROR(AVERAGEIFS(Daten[CENT/KM],Daten[DATUM],G43,Daten[AKTIVITÄT],$J$8),NA())","v":{"$error":"#N/A"}}]
[{"$nulls":5},35,"2012-06-04",{"$f":"SUMIFS(Daten[KILOMETER],Daten[DATUM],G44,Daten[AKTIVITÄT],$H$8)","v":0},{"$f":"IFERROR(AVERAGEIFS(Daten[VERBRAUCH PRO 100 KM],Daten[DATUM],G44,Daten[AKTIVITÄT],$I$8),NA())","v":{"$error":"#N/A"}},{"$f":"IFERROR(AVERAGEIFS(Daten[CENT/KM],Daten[DATUM],G44,Daten[AKTIVITÄT],$J$8),NA())","v":{"$error":"#N/A"}}]
[{"$nulls":5},36,"2012-06-05",{"$f":"SUMIFS(Daten[KILOMETER],Daten[DATUM],G45,Daten[AKTIVITÄT],$H$8)","v":0},{"$f":"IFERROR(AVERAGEIFS(Daten[VERBRAUCH PRO 100 KM],Daten[DATUM],G45,Daten[AKTIVITÄT],$I$8),NA())","v":{"$error":"#N/A"}},{"$f":"IFERROR(AVERAGEIFS(Daten[CENT/KM],Daten[DATUM],G45,Daten[AKTIVITÄT],$J$8),NA())","v":{"$error":"#N/A"}}]
[{"$nulls":5},37,"2012-06-06",{"$f":"SUMIFS(Daten[KILOMETER],Daten[DATUM],G46,Daten[AKTIVITÄT],$H$8)","v":0},{"$f":"IFERROR(AVERAGEIFS(Daten[VERBRAUCH PRO 100 KM],Daten[DATUM],G46,Daten[AKTIVITÄT],$I$8),NA())","v":{"$error":"#N/A"}},{"$f":"IFERROR(AVERAGEIFS(Daten[CENT/KM],Daten[DATUM],G46,Daten[AKTIVITÄT],$J$8),NA())","v":{"$error":"#N/A"}}]
[{"$nulls":5},38,"2012-06-07",{"$f":"SUMIFS(Daten[KILOMETER],Daten[DATUM],G47,Daten[AKTIVITÄT],$H$8)","v":0},{"$f":"IFERROR(AVERAGEIFS(Daten[VERBRAUCH PRO 100 KM],Daten[DATUM],G47,Daten[AKTIVITÄT],$I$8),NA())","v":{"$error":"#N/A"}},{"$f":"IFERROR(AVERAGEIFS(Daten[CENT/KM],Daten[DATUM],G47,Daten[AKTIVITÄT],$J$8),NA())","v":{"$error":"#N/A"}}]
[{"$nulls":5},39,"2012-06-08",{"$f":"SUMIFS(Daten[KILOMETER],Daten[DATUM],G48,Daten[AKTIVITÄT],$H$8)","v":0},{"$f":"IFERROR(AVERAGEIFS(Daten[VERBRAUCH PRO 100 KM],Daten[DATUM],G48,Daten[AKTIVITÄT],$I$8),NA())","v":{"$error":"#N/A"}},{"$f":"IFERROR(AVERAGEIFS(Daten[CENT/KM],Daten[DATUM],G48,Daten[AKTIVITÄT],$J$8),NA())","v":{"$error":"#N/A"}}]
[{"$nulls":5},40,"2012-06-09",{"$f":"SUMIFS(Daten[KILOMETER],Daten[DATUM],G49,Daten[AKTIVITÄT],$H$8)","v":0},{"$f":"IFERROR(AVERAGEIFS(Daten[VERBRAUCH PRO 100 KM],Daten[DATUM],G49,Daten[AKTIVITÄT],$I$8),NA())","v":{"$error":"#N/A"}},{"$f":"IFERROR(AVERAGEIFS(Daten[CENT/KM],Daten[DATUM],G49,Daten[AKTIVITÄT],$J$8),NA())","v":{"$error":"#N/A"}}]
[{"$nulls":5},41,"2012-06-10",{"$f":"SUMIFS(Daten[KILOMETER],Daten[DATUM],G50,Daten[AKTIVITÄT],$H$8)","v":0},{"$f":"IFERROR(AVERAGEIFS(Daten[VERBRAUCH PRO 100 KM],Daten[DATUM],G50,Daten[AKTIVITÄT],$I$8),NA())","v":{"$error":"#N/A"}},{"$f":"IFERROR(AVERAGEIFS(Daten[CENT/KM],Daten[DATUM],G50,Daten[AKTIVITÄT],$J$8),NA())","v":{"$error":"#N/A"}}]
[{"$nulls":5},42,"2012-06-11",{"$f":"SUMIFS(Daten[KILOMETER],Daten[DATUM],G51,Daten[AKTIVITÄT],$H$8)","v":0},{"$f":"IFERROR(AVERAGEIFS(Daten[VERBRAUCH PRO 100 KM],Daten[DATUM],G51,Daten[AKTIVITÄT],$I$8),NA())","v":{"$error":"#N/A"}},{"$f":"IFERROR(AVERAGEIFS(Daten[CENT/KM],Daten[DATUM],G51,Daten[AKTIVITÄT],$J$8),NA())","v":{"$error":"#N/A"}}]
[{"$nulls":5},43,"2012-06-12",{"$f":"SUMIFS(Daten[KILOMETER],Daten[DATUM],G52,Daten[AKTIVITÄT],$H$8)","v":0},{"$f":"IFERROR(AVERAGEIFS(Daten[VERBRAUCH PRO 100 KM],Daten[DATUM],G52,Daten[AKTIVITÄT],$I$8),NA())","v":{"$error":"#N/A"}},{"$f":"IFERROR(AVERAGEIFS(Daten[CENT/KM],Daten[DATUM],G52,Daten[AKTIVITÄT],$J$8),NA())","v":{"$error":"#N/A"}}]
[{"$nulls":5},44,"2012-06-13",{"$f":"SUMIFS(Daten[KILOMETER],Daten[DATUM],G53,Daten[AKTIVITÄT],$H$8)","v":0},{"$f":"IFERROR(AVERAGEIFS(Daten[VERBRAUCH PRO 100 KM],Daten[DATUM],G53,Daten[AKTIVITÄT],$I$8),NA())","v":{"$error":"#N/A"}},{"$f":"IFERROR(AVERAGEIFS(Daten[CENT/KM],Daten[DATUM],G53,Daten[AKTIVITÄT],$J$8),NA())","v":{"$error":"#N/A"}}]
[{"$nulls":5},45,"2012-06-14",{"$f":"SUMIFS(Daten[KILOMETER],Daten[DATUM],G54,Daten[AKTIVITÄT],$H$8)","v":0},{"$f":"IFERROR(AVERAGEIFS(Daten[VERBRAUCH PRO 100 KM],Daten[DATUM],G54,Daten[AKTIVITÄT],$I$8),NA())","v":{"$error":"#N/A"}},{"$f":"IFERROR(AVERAGEIFS(Daten[CENT/KM],Daten[DATUM],G54,Daten[AKTIVITÄT],$J$8),NA())","v":{"$error":"#N/A"}}]
[{"$nulls":5},46,"2012-06-15",{"$f":"SUMIFS(Daten[KILOMETER],Daten[DATUM],G55,Daten[AKTIVITÄT],$H$8)","v":0},{"$f":"IFERROR(AVERAGEIFS(Daten[VERBRAUCH PRO 100 KM],Daten[DATUM],G55,Daten[AKTIVITÄT],$I$8),NA())","v":{"$error":"#N/A"}},{"$f":"IFERROR(AVERAGEIFS(Daten[CENT/KM],Daten[DATUM],G55,Daten[AKTIVITÄT],$J$8),NA())","v":{"$error":"#N/A"}}]
[{"$nulls":5},47,"2012-06-16",{"$f":"SUMIFS(Daten[KILOMETER],Daten[DATUM],G56,Daten[AKTIVITÄT],$H$8)","v":0},{"$f":"IFERROR(AVERAGEIFS(Daten[VERBRAUCH PRO 100 KM],Daten[DATUM],G56,Daten[AKTIVITÄT],$I$8),NA())","v":{"$error":"#N/A"}},{"$f":"IFERROR(AVERAGEIFS(Daten[CENT/KM],Daten[DATUM],G56,Daten[AKTIVITÄT],$J$8),NA())","v":{"$error":"#N/A"}}]
[{"$nulls":5},48,"2012-06-17",{"$f":"SUMIFS(Daten[KILOMETER],Daten[DATUM],G57,Daten[AKTIVITÄT],$H$8)","v":0},{"$f":"IFERROR(AVERAGEIFS(Daten[VERBRAUCH PRO 100 KM],Daten[DATUM],G57,Daten[AKTIVITÄT],$I$8),NA())","v":{"$error":"#N/A"}},{"$f":"IFERROR(AVERAGEIFS(Daten[CENT/KM],Daten[DATUM],G57,Daten[AKTIVITÄT],$J$8),NA())","v":{"$error":"#N/A"}}]
[{"$nulls":5},49,"2012-06-18",{"$f":"SUMIFS(Daten[KILOMETER],Daten[DATUM],G58,Daten[AKTIVITÄT],$H$8)","v":0},{"$f":"IFERROR(AVERAGEIFS(Daten[VERBRAUCH PRO 100 KM],Daten[DATUM],G58,Daten[AKTIVITÄT],$I$8),NA())","v":{"$error":"#N/A"}},{"$f":"IFERROR(AVERAGEIFS(Daten[CENT/KM],Daten[DATUM],G58,Daten[AKTIVITÄT],$J$8),NA())","v":{"$error":"#N/A"}}]
[{"$nulls":5},50,"2012-06-19",{"$f":"SUMIFS(Daten[KILOMETER],Daten[DATUM],G59,Daten[AKTIVITÄT],$H$8)","v":0},{"$f":"IFERROR(AVERAGEIFS(Daten[VERBRAUCH PRO 100 KM],Daten[DATUM],G59,Daten[AKTIVITÄT],$I$8),NA())","v":{"$error":"#N/A"}},{"$f":"IFERROR(AVERAGEIFS(Daten[CENT/KM],Daten[DATUM],G59,Daten[AKTIVITÄT],$J$8),NA())","v":{"$error":"#N/A"}}]
[{"$nulls":5},51,"2012-06-20",{"$f":"SUMIFS(Daten[KILOMETER],Daten[DATUM],G60,Daten[AKTIVITÄT],$H$8)","v":0},{"$f":"IFERROR(AVERAGEIFS(Daten[VERBRAUCH PRO 100 KM],Daten[DATUM],G60,Daten[AKTIVITÄT],$I$8),NA())","v":{"$error":"#N/A"}},{"$f":"IFERROR(AVERAGEIFS(Daten[CENT/KM],Daten[DATUM],G60,Daten[AKTIVITÄT],$J$8),NA())","v":{"$error":"#N/A"}}]
[{"$nulls":5},52,"2012-06-21",{"$f":"SUMIFS(Daten[KILOMETER],Daten[DATUM],G61,Daten[AKTIVITÄT],$H$8)","v":0},{"$f":"IFERROR(AVERAGEIFS(Daten[VERBRAUCH PRO 100 KM],Daten[DATUM],G61,Daten[AKTIVITÄT],$I$8),NA())","v":{"$error":"#N/A"}},{"$f":"IFERROR(AVERAGEIFS(Daten[CENT/KM],Daten[DATUM],G61,Daten[AKTIVITÄT],$J$8),NA())","v":{"$error":"#N/A"}}]
[{"$nulls":5},53,"2012-06-22",{"$f":"SUMIFS(Daten[KILOMETER],Daten[DATUM],G62,Daten[AKTIVITÄT],$H$8)","v":0},{"$f":"IFERROR(AVERAGEIFS(Daten[VERBRAUCH PRO 100 KM],Daten[DATUM],G62,Daten[AKTIVITÄT],$I$8),NA())","v":{"$error":"#N/A"}},{"$f":"IFERROR(AVERAGEIFS(Daten[CENT/KM],Daten[DATUM],G62,Daten[AKTIVITÄT],$J$8),NA())","v":{"$error":"#N/A"}}]
[{"$nulls":5},54,"2012-06-23",{"$f":"SUMIFS(Daten[KILOMETER],Daten[DATUM],G63,Daten[AKTIVITÄT],$H$8)","v":0},{"$f":"IFERROR(AVERAGEIFS(Daten[VERBRAUCH PRO 100 KM],Daten[DATUM],G63,Daten[AKTIVITÄT],$I$8),NA())","v":{"$error":"#N/A"}},{"$f":"IFERROR(AVERAGEIFS(Daten[CENT/KM],Daten[DATUM],G63,Daten[AKTIVITÄT],$J$8),NA())","v":{"$error":"#N/A"}}]
[{"$nulls":5},55,"2012-06-24",{"$f":"SUMIFS(Daten[KILOMETER],Daten[DATUM],G64,Daten[AKTIVITÄT],$H$8)","v":0},{"$f":"IFERROR(AVERAGEIFS(Daten[VERBRAUCH PRO 100 KM],Daten[DATUM],G64,Daten[AKTIVITÄT],$I$8),NA())","v":{"$error":"#N/A"}},{"$f":"IFERROR(AVERAGEIFS(Daten[CENT/KM],Daten[DATUM],G64,Daten[AKTIVITÄT],$J$8),NA())","v":{"$error":"#N/A"}}]
[{"$nulls":5},56,"2012-06-25",{"$f":"SUMIFS(Daten[KILOMETER],Daten[DATUM],G65,Daten[AKTIVITÄT],$H$8)","v":0},{"$f":"IFERROR(AVERAGEIFS(Daten[VERBRAUCH PRO 100 KM],Daten[DATUM],G65,Daten[AKTIVITÄT],$I$8),NA())","v":{"$error":"#N/A"}},{"$f":"IFERROR(AVERAGEIFS(Daten[CENT/KM],Daten[DATUM],G65,Daten[AKTIVITÄT],$J$8),NA())","v":{"$error":"#N/A"}}]
[{"$nulls":5},57,"2012-06-26",{"$f":"SUMIFS(Daten[KILOMETER],Daten[DATUM],G66,Daten[AKTIVITÄT],$H$8)","v":0},{"$f":"IFERROR(AVERAGEIFS(Daten[VERBRAUCH PRO 100 KM],Daten[DATUM],G66,Daten[AKTIVITÄT],$I$8),NA())","v":{"$error":"#N/A"}},{"$f":"IFERROR(AVERAGEIFS(Daten[CENT/KM],Daten[DATUM],G66,Daten[AKTIVITÄT],$J$8),NA())","v":{"$error":"#N/A"}}]
[{"$nulls":5},58,"2012-06-27",{"$f":"SUMIFS(Daten[KILOMETER],Daten[DATUM],G67,Daten[AKTIVITÄT],$H$8)","v":0},{"$f":"IFERROR(AVERAGEIFS(Daten[VERBRAUCH PRO 100 KM],Daten[DATUM],G67,Daten[AKTIVITÄT],$I$8),NA())","v":{"$error":"#N/A"}},{"$f":"IFERROR(AVERAGEIFS(Daten[CENT/KM],Daten[DATUM],G67,Daten[AKTIVITÄT],$J$8),NA())","v":{"$error":"#N/A"}}]
[{"$nulls":5},59,"2012-06-28",{"$f":"SUMIFS(Daten[KILOMETER],Daten[DATUM],G68,Daten[AKTIVITÄT],$H$8)","v":0},{"$f":"IFERROR(AVERAGEIFS(Daten[VERBRAUCH PRO 100 KM],Daten[DATUM],G68,Daten[AKTIVITÄT],$I$8),NA())","v":{"$error":"#N/A"}},{"$f":"IFERROR(AVERAGEIFS(Daten[CENT/KM],Daten[DATUM],G68,Daten[AKTIVITÄT],$J$8),NA())","v":{"$error":"#N/A"}}]
[{"$nulls":5},60,"2012-06-29",{"$f":"SUMIFS(Daten[KILOMETER],Daten[DATUM],G69,Daten[AKTIVITÄT],$H$8)","v":0},{"$f":"IFERROR(AVERAGEIFS(Daten[VERBRAUCH PRO 100 KM],Daten[DATUM],G69,Daten[AKTIVITÄT],$I$8),NA())","v":{"$error":"#N/A"}},{"$f":"IFERROR(AVERAGEIFS(Daten[CENT/KM],Daten[DATUM],G69,Daten[AKTIVITÄT],$J$8),NA())","v":{"$error":"#N/A"}}]